bitfinex/quotes_ETHUSD_20260106
["timestamp","ask_amount","ask_price","bid_price","bid_amount"]
[1767682511158,1.75421106,3239.7,3238.1,0.92584836]
[1767682511159,1.73573531,3239.7,3238.8,1.78869715]
[1767682511358,1.73573531,3239.7,3238.9,4.71354511]
[1767682511575,1.73573531,3240.0,3239.1,1.62608832]
[1767682511884,2.54573531,3240.2,3239.3,1.62608832]
[1767682512186,5.63198298,3240.2,3239.3,1.62608832]
[1767682512383,1.73573531,3240.1,3239.3,1.62608832]
[1767682513471,4.82207626,3240.1,3239.3,1.62608832]
[1767682513769,4.82207626,3240.1,3239.3,2.43408832]
[1767682514980,4.82207626,3240.1,3239.6,0.001]
[1767682515705,1.73573531,3240.1,3239.6,0.001]
[1767682516006,4.82207505,3240.1,3239.6,0.001]
[1767682516405,1.73573531,3240.1,3239.6,0.001]
[1767682518279,4.82208289,3240.1,3239.6,0.001]
[1767682518479,1.73573531,3240.0,3239.6,0.001]
[1767682527883,1.73573531,3240.0,3239.9,0.001]
[1767682529325,0.002,3240.2,3239.9,0.001]
[1767682529525,0.002,3240.2,3239.9,0.16370883]
[1767682529886,0.002,3240.2,3239.9,0.001]
[1767682530085,1.73773531,3240.2,3239.9,0.001]
[1767682532591,1.67816865,3240.1,3239.9,0.001]
[1767682536618,1.67816865,3240.1,3239.6,0.001]
[1767682537624,1.67816865,3240.0,3239.6,0.001]
[1767682540127,1.67816865,3240.0,3239.9,0.001]
[1767682541364,1.67816865,3240.0,3239.6,0.001]
[1767682541937,1.67816865,3239.7,3238.8,1.63827722]
[1767682543642,4.76496948,3239.6,3238.8,1.63827722]
[1767682543942,1.67816865,3239.3,3238.4,1.63827722]
[1767682544148,1.84783309,3239.3,3238.4,1.63827722]
[1767682544306,7.00007741,3239.6,3238.6,1.63827722]
[1767682544307,1.67816865,3239.5,3238.6,1.63827722]
[1767682544506,1.67816865,3239.5,3238.7,1.63827722]
[1767682544706,1.67816865,3239.5,3238.4,1.63827722]
[1767682545121,1.67816865,3239.5,3238.4,2.44727722]
[1767682545326,1.67816865,3239.4,3238.4,3.07500494]
[1767682545720,1.67816865,3239.3,3238.4,3.07500494]
[1767682547535,1.67816865,3239.6,3238.5,1.63827722]
[1767682547737,1.67816865,3239.6,3238.6,3.08775396]
[1767682547930,1.67816865,3239.6,3238.7,1.63827722]
[1767682548242,1.67816865,3239.6,3238.8,1.63827722]
[1767682548858,4.76498486,3239.6,3238.8,1.63827722]
[1767682549742,1.67816865,3239.6,3238.8,1.63827722]
[1767682551220,4.76498201,3239.6,3238.8,1.63827722]
[1767682551425,1.67816865,3239.6,3238.8,1.63827722]
[1767682551625,1.67816865,3239.6,3238.9,1.63827722]
[1767682553251,1.67816865,3239.6,3239.1,0.001]
[1767682553543,0.16781686,3239.9,3239.1,1.63927722]
[1767682555620,3.25433453,3239.9,3239.1,1.63927722]
[1767682556257,0.16781686,3239.9,3239.1,1.63927722]
[1767682556443,3.2543349,3239.9,3239.1,1.63927722]
[1767682559854,5.00105583,3239.9,3239.1,1.63927722]
[1767682561757,1.66949295,3239.8,3239.1,1.63927722]
[1767682561960,2.5531654,3239.8,3239.1,1.63927722]
[1767682562132,2.57164115,3239.8,3239.1,1.63927722]
[1767682563055,2.57164115,3239.8,3239.1,0.001]
[1767682563056,1.66949295,3239.7,3239.1,0.001]
[1767682563262,0.9021482,3239.8,3239.2,1.71752091]
[1767682563455,2.57164115,3239.8,3239.1,0.001]
[1767682564062,2.57164115,3239.8,3239.1,1.71852091]
[1767682564359,1.6879687,3239.8,3239.1,1.71852091]
[1767682565068,4.77458414,3239.8,3239.1,1.71852091]
[1767682566037,4.77458414,3239.8,3239.2,0.001]
[1767682567134,4.75610839,3239.8,3239.2,0.001]
[1767682567445,1.66949295,3239.8,3239.2,0.001]
[1767682568164,1.66949295,3239.8,3239.2,1.71852091]
[1767682569638,4.75611149,3239.8,3239.2,1.71852091]
[1767682570473,5.63979445,3239.8,3239.2,1.71852091]
[1767682573171,0.02047575,3240.2,3239.7,1.71752091]
[1767682573172,0.002,3240.2,3239.7,1.71752091]
[1767682573374,1.67149295,3240.2,3239.5,1.71752091]
[1767682573546,1.66949295,3240.1,3239.5,1.71752091]
[1767682573737,1.6879687,3240.1,3239.5,1.71552092]
[1767682573939,1.66949295,3239.9,3239.2,0.001]
[1767682574139,1.83644225,3239.8,3239.2,0.001]
[1767682574453,1.66949295,3239.8,3239.2,0.001]
[1767682575067,1.66949295,3239.8,3239.2,1.71852091]
[1767682575573,1.66949295,3240.0,3239.2,1.71852091]
[1767682576276,4.75593339,3240.0,3239.2,1.71852091]
[1767682576465,1.66949295,3240.0,3239.2,1.71852091]
[1767682577975,1.66949295,3239.9,3239.2,1.71852091]
[1767682578376,1.66949295,3239.9,3239.5,0.001]
[1767682578571,1.66949295,3239.8,3239.5,0.001]
[1767682580747,1.66949295,3240.0,3239.5,0.001]
[1767682582371,0.01847575,3239.9,3239.5,0.001]
[1767682582579,1.66949295,3239.8,3239.5,0.001]
[1767682585462,1.66949295,3239.7,3239.5,0.001]
[1767682588074,4.75622684,3239.7,3239.5,0.001]
[1767682588279,5.54235088,3239.7,3239.5,0.001]
[1767682589381,4.75630241,3239.6,3239.2,0.001]
[1767682589581,1.66949295,3239.5,3239.2,0.001]
[1767682590355,1.6899687,3239.5,3239.2,0.001]
[1767682590670,1.66949295,3239.3,3239.2,0.001]
[1767682592386,1.70466774,3239.5,3239.2,0.001]
[1767682593483,4.79156446,3239.5,3239.2,0.001]
[1767682593984,1.70466774,3239.5,3239.2,0.001]
[1767682596165,1.72314349,3239.5,3239.2,0.001]
[1767682596491,0.48099839,3239.4,3239.2,0.001]
[1767682596694,1.70266774,3239.3,3239.2,0.001]
[1767682598565,0.48099839,3239.4,3239.2,0.001]
[1767682599086,1.70266774,3239.3,3238.6,4.68232222]
[1767682599294,4.81007319,3239.5,3238.7,1.594572]
[1767682600107,1.72314349,3239.5,3238.7,1.594572]
[1767682601423,1.72114349,3239.2,3238.0,3.08828789]
[1767682601598,1.72114349,3239.2,3238.2,1.594572]
[1767682602083,0.01847575,3239.1,3238.2,1.594572]
[1767682602599,0.01847575,3239.3,3238.2,1.594572]
[1767682602894,0.01847575,3239.3,3238.4,1.594572]
[1767682603472,3.10564445,3239.3,3238.4,1.594572]
[1767682604368,3.10564445,3239.3,3238.5,0.001]
[1767682604567,3.10564445,3239.3,3238.6,1.594572]
[1767682605598,0.01847575,3239.3,3238.6,1.594572]
[1767682605901,3.10559505,3239.3,3238.6,1.594572]
[1767682606097,0.87032944,3239.2,3238.6,1.594572]
[1767682608183,0.01847575,3239.3,3238.6,1.594572]
[1767682610023,3.10563548,3239.3,3238.6,1.594572]
[1767682612410,4.85650461,3239.3,3238.6,1.594572]
[1767682612584,0.01847575,3239.1,3238.6,1.594572]
[1767682612908,0.01847575,3239.1,3238.6,1.59257201]
[1767682614523,1.75086913,3239.3,3238.6,1.59257201]
[1767682614803,0.002,3239.5,3238.7,1.61049488]
[1767682615194,1.75286913,3239.5,3238.7,1.61049488]
[1767682616283,0.002,3238.8,3238.7,1.61049488]
[1767682616485,1.75086913,3239.3,3238.6,0.1593572]
[1767682616691,1.75086913,3239.0,3238.5,0.001]
[1767682618178,0.002,3239.1,3238.5,0.001]
[1767682618806,0.002,3239.1,3238.5,6.21322389]
[1767682619005,0.002,3239.1,3238.6,1.61049488]
[1767682627743,0.002,3239.1,3238.6,4.7291204]
[1767682627914,0.002,3239.1,3238.7,0.47301204]
[1767682628431,0.002,3239.1,3238.7,2.11064681]
[1767682629125,0.002,3238.8,3238.7,2.11064681]
[1767682629311,0.002,3239.1,3238.7,0.47301204]
[1767682631804,0.002,3239.1,3238.7,2.11064681]
[1767682632141,0.002,3239.1,3238.8,0.51983878]
[1767682633651,2.40797939,3239.5,3238.8,2.15747355]
[1767682633949,1.59997939,3239.5,3238.8,1.63763477]
[1767682637226,1.59997939,3239.5,3238.6,3.0877381]
[1767682637747,1.59997939,3239.5,3238.6,4.72537287]
[1767682638346,1.59997939,3239.5,3238.7,3.08764989]
[1767682638519,1.59997939,3239.5,3238.8,0.47252847]
[1767682638718,1.59997939,3239.5,3238.9,1.63763477]
[1767682639957,0.002,3239.8,3238.9,1.63763477]
[1767682640126,1.61645514,3239.7,3238.9,1.63763477]
[1767682640443,1.59797939,3239.6,3238.9,1.63763477]
[1767682640650,1.61645514,3239.6,3239.0,0.21101632]
[1767682640844,1.61645514,3239.6,3238.9,1.63763477]
[1767682641052,0.002,3239.2,3238.9,1.63763477]
[1767682641549,0.002,3239.2,3238.8,0.47252847]
[1767682641728,0.002,3239.2,3238.7,1.63763477]
[1767682648025,1.59997939,3239.2,3238.5,0.001]
[1767682648752,1.59997939,3239.2,3238.5,4.7264767]
[1767682648950,1.59997939,3239.2,3238.6,1.63763477]
[1767682649255,0.002,3239.2,3238.6,2.11028244]
[1767682650263,0.002,3239.2,3238.7,1.63763477]
[1767682654354,0.002,3239.2,3238.5,3.08883641]
[1767682654539,0.002,3239.2,3239.0,0.001]
[1767682658563,1.59914838,3239.2,3238.6,1.64325257]
[1767682659061,0.002,3239.2,3238.6,1.64325257]
[1767682659559,0.002,3239.5,3239.1,1.64325257]
[1767682662357,1.61762413,3239.8,3239.1,1.64325257]
[1767682662559,1.61762413,3239.8,3239.0,3.08728706]
[1767682662757,1.59914838,3239.8,3239.1,3.08727644]
[1767682662963,1.59914838,3239.8,3239.2,0.30872764]
[1767682666486,1.59914838,3239.8,3239.3,0.001]
[1767682666855,0.002,3239.5,3239.3,0.001]
[1767682667045,1.59914838,3239.8,3239.3,0.001]
[1767682667943,1.59714838,3239.6,3239.3,0.001]
[1767682669870,0.01847575,3239.7,3239.3,0.001]
[1767682670178,1.61562413,3239.7,3239.3,0.001]
[1767682671580,2.06941363,3239.7,3239.3,0.001]
[1767682671746,0.47226525,3239.7,3239.3,0.001]
[1767682671948,0.002,3239.8,3239.3,0.001]
[1767682672146,0.01847575,3239.7,3239.3,0.001]
[1767682673961,3.10519573,3239.7,3239.3,0.001]
[1767682675076,4.70238513,3239.7,3239.3,0.001]
[1767682676077,1.70225953,3239.6,3239.3,0.001]
[1767682676258,0.48074963,3239.5,3239.3,0.001]
[1767682676464,1.70225953,3239.4,3238.8,1.57906099]
[1767682677059,1.70225953,3239.0,3238.5,0.001]
[1767682677265,1.70225953,3239.0,3238.1,0.001]
[1767682677266,1.72073528,3238.7,3238.1,0.001]
[1767682677681,0.01847575,3238.5,3238.1,0.001]
[1767682678878,4.80846146,3238.7,3238.1,0.001]
[1767682679256,0.01847575,3238.5,3238.1,0.001]
[1767682679458,1.72073528,3238.5,3238.1,0.001]
[1767682681693,0.01847575,3238.5,3238.1,1.64210893]
[1767682681854,3.89541402,3239.0,3238.1,1.80631982]
[1767682682194,1.6388911,3238.8,3238.1,1.64210893]
[1767682682370,1.65736685,3238.7,3238.1,1.64210893]
[1767682682962,0.01847575,3238.6,3238.1,1.64210893]
[1767682684283,3.08764044,3238.8,3238.1,1.64210893]
[1767682684460,3.78778887,3238.8,3238.1,1.64210893]
[1767682684862,0.01847575,3238.7,3238.1,1.64210893]
[1767682685389,0.01847575,3238.5,3238.1,1.64210893]
[1767682689782,0.01847575,3238.3,3238.1,0.001]
[1767682690385,3.10632565,3238.5,3238.1,0.001]
[1767682690594,3.27390991,3238.5,3238.4,0.001]
[1767682690776,3.27390991,3238.5,3238.1,0.001]
[1767682690777,0.01847575,3238.3,3238.1,0.001]
[1767682691681,0.01847575,3238.3,3237.7,1.64110893]
[1767682691863,0.01847575,3238.1,3237.3,1.64110893]
[1767682692060,0.01847575,3238.1,3237.4,1.64110893]
[1767682692263,3.10672531,3238.1,3237.4,1.64110893]
[1767682692578,0.01847575,3237.9,3237.4,1.64110893]
[1767682693586,0.01847575,3237.8,3237.1,1.64110893]
[1767682694395,0.01847575,3237.6,3237.1,1.64110893]
[1767682695609,0.33102447,3237.6,3236.9,1.64110893]
[1767682695787,0.01847575,3237.6,3236.9,1.64110893]
[1767682696178,1.65736685,3237.6,3236.9,1.64110893]
[1767682696587,0.01847575,3237.6,3236.9,1.64110893]
[1767682697271,0.01847575,3237.5,3236.9,1.64110893]
[1767682697602,0.01847575,3237.4,3236.9,1.64110893]
[1767682698772,0.01847575,3237.7,3237.0,1.67200173]
[1767682699022,0.01847575,3237.9,3237.0,1.67200173]
[1767682699206,0.01847575,3237.9,3237.0,1.64110893]
[1767682699411,0.01847575,3237.9,3237.1,1.64110893]
[1767682699605,1.65736685,3237.9,3237.4,0.01847575]
[1767682699809,0.01847575,3237.9,3237.4,1.65958468]
[1767682700607,0.01847575,3237.5,3237.4,0.01847575]
[1767682700796,1.65736685,3237.7,3237.4,0.01847575]
[1767682701002,0.01847575,3237.5,3237.0,3.08922588]
[1767682701311,0.01847575,3237.5,3237.0,3.75439906]
[1767682702300,0.01847575,3237.5,3237.0,0.66517318]
[1767682702606,0.01847575,3237.7,3237.3,0.001]
[1767682702817,1.65736685,3237.9,3237.3,0.001]
[1767682702990,1.65736685,3237.9,3236.6,1.64110893]
[1767682702991,1.65736685,3237.5,3236.6,1.64110893]
[1767682703196,0.01847575,3237.1,3236.6,3.08960028]
[1767682703403,0.01847575,3236.9,3236.3,1.64110893]
[1767682703895,0.01847575,3236.9,3236.3,4.73105669]
[1767682704112,0.01847575,3236.9,3236.4,0.78210988]
[1767682705989,0.01847575,3236.9,3236.4,2.42321881]
[1767682706194,0.01847575,3236.9,3236.5,1.64110893]
[1767682706703,0.01847575,3237.1,3236.5,1.64110893]
[1767682707095,1.6388911,3237.2,3236.4,6.96176872]
[1767682707292,1.6388911,3237.2,3236.6,0.03089661]
[1767682707534,0.01847575,3237.3,3237.1,0.01847573]
[1767682707739,0.01847575,3237.3,3237.1,1.65958466]
[1767682708414,0.01847575,3237.5,3237.1,1.65958466]
[1767682708743,0.01847575,3237.2,3237.1,1.65958466]
[1767682710526,0.01847575,3237.5,3237.1,0.01847573]
[1767682710731,0.01847575,3237.2,3237.1,0.01847573]
[1767682710915,0.01847575,3237.3,3237.1,0.01847573]
[1767682713697,0.01847575,3237.3,3235.9,3.09033035]
[1767682713698,0.01847575,3236.9,3235.9,3.09033035]
[1767682713904,0.808,3237.3,3236.1,1.61527198]
[1767682714097,3.08900133,3237.3,3236.3,1.61527198]
[1767682714303,0.01847575,3237.5,3236.5,1.61527198]
[1767682714499,1.69080038,3237.6,3236.6,0.1615272]
[1767682714705,1.69080038,3237.4,3236.6,0.1615272]
[1767682714921,1.69080038,3237.4,3236.6,0.809]
[1767682715516,1.69080038,3237.4,3236.6,3.89865939]
[1767682718339,1.69080038,3237.4,3236.7,0.809]
[1767682718737,4.77973507,3237.4,3236.3,3.08992714]
[1767682718937,0.01847575,3237.5,3236.4,3.89885192]
[1767682718938,1.69080038,3237.3,3236.4,3.89885192]
[1767682719147,1.69080038,3237.3,3236.4,4.59773409]
[1767682719737,0.002,3237.6,3236.5,1.61527198]
[1767682719738,3.09080241,3237.6,3236.5,1.61527198]
[1767682719941,0.002,3237.6,3236.5,1.61527198]
[1767682720126,3.09071208,3237.6,3236.5,1.61527198]
[1767682720639,1.70927613,3237.3,3236.4,1.61527198]
[1767682720840,0.41019453,3237.5,3236.6,1.61527198]
[1767682721136,2.10099491,3237.5,3236.4,4.70510191]
[1767682721343,0.41019453,3237.5,3236.5,1.64616955]
[1767682721579,0.41019453,3237.5,3236.5,1.61527198]
[1767682721745,0.41019453,3237.5,3236.6,1.61527198]
[1767682721945,0.01847575,3236.9,3236.2,0.809]
[1767682722154,0.01847575,3236.7,3235.7,2.42427198]
[1767682722449,0.01847575,3236.7,3235.8,1.85769918]
[1767682722744,0.01847575,3236.7,3235.9,1.61527198]
[1767682722943,0.01847575,3236.7,3236.0,1.61527198]
[1767682724411,0.01847575,3236.9,3236.0,4.70548575]
[1767682724616,3.10785402,3236.9,3236.0,1.61527198]
[1767682724816,0.01847575,3236.9,3236.1,1.61527198]
[1767682725517,0.01847575,3236.9,3236.2,1.61527198]
[1767682725714,3.91569696,3237.1,3236.2,1.61527198]
[1767682725910,0.01847575,3236.9,3236.2,1.61527198]
[1767682727939,3.91769696,3237.1,3236.2,1.61527198]
[1767682728141,3.91769696,3237.1,3236.2,1.64617241]
[1767682728447,0.01847575,3236.9,3236.2,1.64617241]
[1767682729136,0.56084973,3237.0,3236.2,1.64617241]
[1767682729315,0.002,3237.1,3236.3,1.61527198]
[1767682729717,0.002,3237.1,3236.5,1.61527198]
[1767682731359,0.002,3237.1,3236.6,1.64616859]
[1767682731548,0.002,3237.4,3236.9,1.61527198]
[1767682736040,0.002,3237.4,3236.7,5.59898538]
[1767682736242,0.002,3237.4,3236.9,1.70042878]
[1767682736862,1.60020448,3237.4,3236.8,0.55989854]
[1767682737257,1.61868023,3237.4,3236.6,1.70042878]
[1767682737434,1.59820448,3237.3,3236.6,1.70042878]
[1767682737636,0.02047575,3237.4,3236.7,1.70042878]
[1767682738248,1.61868023,3237.4,3236.5,3.89868748]
[1767682739162,1.61868023,3237.4,3236.5,5.59911626]
[1767682739337,1.61868023,3237.4,3236.6,2.26034041]
[1767682740847,0.002,3237.1,3236.7,1.70042878]
[1767682741175,1.61868023,3237.4,3236.6,3.64957335]
[1767682742164,1.61868023,3237.4,3236.6,0.55991163]
[1767682743472,0.02047575,3237.4,3236.7,1.63040781]
[1767682743672,1.75691196,3237.4,3236.6,0.55991163]
[1767682743870,0.02047575,3237.4,3236.7,1.63040781]
[1767682744095,0.02047575,3237.4,3236.7,2.23930428]
[1767682744273,1.75691196,3237.4,3236.7,2.23930428]
[1767682744469,0.02047575,3237.4,3236.8,1.63040781]
[1767682745475,1.75691196,3237.4,3236.6,3.08965417]
[1767682745675,1.75491196,3237.3,3236.4,2.43940781]
[1767682747185,0.01847575,3237.1,3236.4,1.63040781]
[1767682749171,3.10766786,3237.1,3236.4,1.63040781]
[1767682749373,0.01847575,3237.1,3236.4,1.63040781]
[1767682749562,3.10766925,3237.1,3236.4,1.63040781]
[1767682749766,0.01847575,3237.1,3236.4,1.63040781]
[1767682750062,3.1076715,3237.1,3236.4,1.63040781]
[1767682750263,0.01847575,3237.1,3236.4,1.63040781]
[1767682750465,3.59394392,3237.1,3236.4,1.63040781]
[1767682750660,3.59394392,3237.1,3236.1,3.09009437]
[1767682750661,1.73643621,3237.0,3236.1,3.09009437]
[1767682750857,1.73643621,3237.0,3236.1,3.89909437]
[1767682751062,1.73643621,3237.0,3236.2,3.09003669]
[1767682752166,3.0891321,3237.2,3236.3,1.63040781]
[1767682752381,0.8421687,3237.2,3236.3,1.63040781]
[1767682752579,1.73643621,3237.3,3236.2,3.09003669]
[1767682752986,1.73643621,3237.3,3236.5,0.001]
[1767682753593,1.73643621,3237.3,3236.5,1.63140781]
[1767682753981,0.002,3237.4,3236.6,1.63040781]
[1767682754166,0.02047575,3237.4,3236.6,1.63040781]
[1767682754366,1.75691196,3237.4,3236.6,1.63040781]
[1767682755878,1.73643621,3237.2,3236.5,0.001]
[1767682756080,0.01847575,3237.1,3236.5,0.001]
[1767682757794,0.01847575,3237.1,3236.5,1.63140781]
[1767682757987,0.01847575,3236.9,3236.5,0.001]
[1767682758168,0.01847575,3236.7,3236.5,0.001]
[1767682761111,0.01847575,3236.7,3236.0,4.72060144]
[1767682761112,0.01847575,3236.7,3236.0,1.63040781]
[1767682761292,1.93225073,3236.7,3235.8,5.5298128]
[1767682761492,0.01847575,3236.5,3235.8,4.7208128]
[1767682761992,1.75491196,3236.7,3235.9,1.63040781]
[1767682762298,0.01847575,3236.5,3235.9,1.63040781]
[1767682764072,0.01847575,3236.7,3236.1,1.63040781]
[1767682764400,0.01847575,3236.9,3236.1,1.63040781]
[1767682764600,0.01847575,3236.9,3236.2,1.63040781]
[1767682764795,0.01847575,3236.7,3236.2,1.63040781]
[1767682765108,0.01847575,3236.7,3236.2,1.63140781]
[1767682766396,0.01847575,3236.9,3236.2,1.63140781]
[1767682768503,3.10785173,3236.9,3236.2,1.63140781]
[1767682768708,0.01847575,3236.7,3236.2,1.63140781]
[1767682769004,1.75491196,3236.7,3236.2,0.001]
[1767682770104,1.73643621,3236.6,3236.2,0.001]
[1767682770903,2.24118833,3236.7,3236.2,0.001]
[1767682771702,1.66972302,3236.6,3236.2,0.001]
[1767682771882,0.01847575,3236.7,3236.2,0.001]
[1767682772085,0.01847575,3236.7,3236.2,1.6671531]
[1767682775211,1.68819877,3236.7,3236.2,0.001]
[1767682775785,0.01847575,3236.7,3236.2,1.6671531]
[1767682779993,0.01847575,3236.7,3236.2,0.001]
[1767682780709,3.10804635,3236.7,3236.2,0.001]
[1767682780904,0.01847575,3236.7,3236.2,0.001]
[1767682781212,0.01847575,3236.5,3236.2,0.001]
[1767682790801,0.01847575,3236.4,3236.2,0.001]
[1767682791823,1.66972302,3236.6,3236.2,0.001]
[1767682792124,4.75939339,3236.6,3236.2,0.001]
[1767682792424,0.01847575,3236.5,3236.2,0.001]
[1767682800529,0.01847575,3236.7,3236.3,1.59132215]
[1767682800742,0.01847575,3236.7,3236.5,0.001]
[1767682800953,0.01847575,3236.9,3236.5,1.75155437]
[1767682801117,1.6778371,3237.1,3236.5,0.001]
[1767682801438,1.65936135,3236.8,3236.2,0.001]
[1767682801601,1.6778371,3237.0,3236.2,1.71498595]
[1767682801801,0.01847575,3236.8,3236.2,1.71498595]
[1767682802434,0.01847575,3236.6,3236.2,1.71498595]
[1767682805727,3.10798203,3236.8,3236.2,1.71498595]
[1767682806305,3.89549309,3236.8,3236.2,1.71498595]
[1767682807033,0.01847575,3236.5,3236.2,0.001]
[1767682807240,0.01847575,3236.5,3235.9,1.56067368]
[1767682807416,0.01847575,3237.0,3236.2,1.71398595]
[1767682807734,0.002,3237.4,3236.3,2.34321172]
[1767682807735,1.65936135,3237.2,3236.3,2.34321172]
[1767682809035,0.48305962,3237.3,3236.4,1.71398595]
[1767682809234,0.48305962,3237.3,3236.5,3.08975745]
[1767682811226,0.002,3237.4,3236.6,1.71398595]
[1767682811431,0.15823,3237.8,3237.4,1.71398595]
[1767682811712,0.01847575,3237.7,3237.4,1.71398595]
[1767682811919,0.00459711,3237.7,3236.8,1.71398595]
[1767682812107,0.15823,3237.8,3236.8,1.71398595]
[1767682812340,0.15823,3237.8,3237.7,0.01549994]
[1767682812341,0.16106102,3237.8,3237.7,0.01549994]
[1767682813632,0.00264332,3238.1,3237.7,0.01549994]
[1767682814037,0.01847575,3238.2,3236.7,2.50333604]
[1767682814038,0.00265363,3237.7,3236.7,2.50333604]
[1767682814223,0.02112938,3237.6,3236.8,6.98794216]
[1767682814528,0.01847575,3237.6,3236.9,0.94912782]
[1767682815118,0.02122225,3237.6,3236.9,0.94912782]
[1767682815918,0.01847575,3237.6,3237.1,1.71398595]
[1767682816656,0.00544436,3237.7,3237.0,3.08924204]
[1767682816949,0.00544436,3237.7,3237.0,6.17852223]
[1767682817158,0.00544436,3237.7,3237.1,0.71276501]
[1767682817558,0.01847575,3237.8,3237.2,1.71398595]
[1767682818437,0.01847575,3237.8,3237.3,1.71398595]
[1767682819560,0.809,3238.3,3237.3,1.71398595]
[1767682820657,0.809,3238.3,3237.5,1.71398595]
[1767682820837,0.38970009,3238.2,3237.5,1.71398595]
[1767682821948,0.809,3238.3,3237.5,1.71398595]
[1767682822255,3.89709008,3238.3,3237.5,1.71398595]
[1767682823049,3.91556583,3238.3,3237.5,1.71398595]
[1767682823234,0.82747575,3238.3,3237.5,1.71398595]
[1767682824558,3.91552991,3238.3,3237.5,1.71398595]
[1767682824758,0.39155299,3238.2,3237.5,1.71398595]
[1767682825136,0.82747575,3238.3,3237.6,1.71398595]
[1767682826263,0.002,3238.0,3237.6,1.71398595]
[1767682828170,0.002,3238.0,3237.6,4.8026679]
[1767682828464,0.811,3238.3,3237.9,1.71398595]
[1767682828638,0.811,3238.3,3237.6,3.08868195]
[1767682828639,0.03547308,3238.2,3237.6,3.08868195]
[1767682828839,0.03547308,3238.2,3237.6,3.39755014]
[1767682829157,0.03547308,3238.2,3237.6,0.30886819]
[1767682829338,0.03547308,3238.2,3237.6,3.39755329]
[1767682831255,0.811,3238.3,3237.7,1.61285022]
[1767682832464,3.96437906,3238.3,3237.4,1.61285022]
[1767682832666,0.39643791,3238.2,3237.4,1.61285022]
[1767682832974,0.01847575,3238.1,3237.4,1.61285022]
[1767682833175,3.08832612,3238.0,3237.4,1.61285022]
[1767682833546,3.10674639,3238.1,3237.4,1.61285022]
[1767682833970,0.01847575,3238.1,3237.4,1.61285022]
[1767682834205,0.35030731,3238.0,3237.4,1.61285022]
[1767682835676,0.01847575,3237.6,3236.7,1.61285022]
[1767682836046,2.41129425,3237.7,3236.7,1.61285022]
[1767682837175,2.41129425,3237.7,3236.8,1.61285022]
[1767682837683,3.08870768,3237.6,3236.8,1.61285022]
[1767682839482,6.17741536,3237.6,3236.8,1.61285022]
[1767682839851,6.19589111,3237.6,3236.8,1.61285022]
[1767682840754,0.01847575,3237.4,3236.8,1.61285022]
[1767682841596,0.01847575,3237.4,3236.0,3.09020967]
[1767682841597,4.57728369,3237.1,3236.3,1.61285022]
[1767682841752,4.57728369,3237.1,3235.5,3.9422571]
[1767682841753,1.60329425,3236.9,3235.9,4.70317973]
[1767682842085,6.17856038,3237.0,3236.0,1.61285022]
[1767682842255,6.17856038,3237.0,3236.2,1.61285022]
[1767682842760,4.57728369,3236.8,3236.2,1.61285022]
[1767682842961,1.60329425,3237.0,3236.2,1.61285022]
[1767682843281,3.10765492,3237.2,3236.4,1.61285022]
[1767682843282,1.60329425,3237.2,3236.4,1.61285022]
[1767682843469,1.60329425,3237.2,3236.2,1.61285022]
[1767682843673,1.60329425,3237.2,3236.3,0.47029726]
[1767682843874,1.60329425,3237.0,3235.9,1.61285022]
[1767682844180,1.60329425,3237.0,3235.9,4.70317514]
[1767682844581,6.17836952,3237.1,3236.0,1.66147805]
[1767682844784,3.08918476,3237.1,3236.0,1.66147805]
[1767682844975,6.17836952,3237.1,3236.1,1.66147805]
[1767682845175,6.17836952,3237.1,3236.3,1.66147805]
[1767682846677,7.10855057,3237.3,3236.3,1.66147805]
[1767682846678,6.17817866,3237.2,3236.3,1.66147805]
[1767682847856,4.57728369,3237.0,3236.3,1.66147805]
[1767682848590,0.01847575,3236.8,3236.0,1.66147805]
[1767682848887,4.57728369,3236.7,3236.0,1.66147805]
[1767682849684,0.01847575,3236.6,3235.5,1.66147805]
[1767682849854,4.57728369,3236.4,3235.5,1.66147805]
[1767682850686,3.89894839,3236.3,3235.5,1.66147805]
[1767682850890,6.98889678,3236.3,3235.5,1.66147805]
[1767682851058,6.98889678,3236.3,3235.5,1.82762585]
[1767682851693,7.00737253,3236.3,3235.5,1.82762585]
[1767682855078,6.98889678,3236.3,3235.5,1.82762585]
[1767682856389,6.98889678,3236.3,3235.5,1.66147805]
[1767682857321,1.7467463,3236.2,3235.2,1.66147805]
[1767682857524,6.98889678,3236.3,3235.3,1.66147805]
[1767682857674,3.89894839,3236.3,3235.3,1.66147805]
[1767682858077,6.98889678,3236.3,3235.3,1.66147805]
[1767682858281,0.70073725,3236.2,3235.3,1.66147805]
[1767682858708,2.5033177,3236.2,3235.3,1.66147805]
[1767682859212,5.59340656,3236.2,3235.3,1.66147805]
[1767682859410,3.89899912,3236.3,3235.4,1.66147805]
[1767682859712,6.98899824,3236.3,3235.4,1.66147805]
[1767682859879,0.01847575,3236.2,3235.4,1.66147805]
[1767682860079,1.80258045,3236.2,3235.4,1.66147805]
[1767682860479,1.81996805,3236.0,3234.6,2.53553227]
[1767682860680,1.79330374,3236.0,3235.3,1.72653227]
[1767682861213,1.81837438,3235.6,3234.8,1.77645074]
[1767682861413,7.20465807,3235.6,3234.8,1.77645074]
[1767682861809,0.01847575,3235.5,3234.8,1.77645074]
[1767682862112,0.01847575,3236.1,3234.9,1.77645074]
[1767682862308,0.01847575,3236.1,3235.1,1.77645074]
[1767682862309,0.809,3236.0,3235.1,1.77645074]
[1767682863292,3.09033035,3235.9,3235.1,1.77645074]
[1767682864726,3.1088061,3235.9,3235.1,1.77645074]
[1767682865546,1.81837438,3235.8,3235.1,1.77645074]
[1767682865699,6.19913645,3235.9,3234.6,1.77645074]
[1767682865700,1.83685013,3235.5,3234.6,1.77645074]
[1767682866026,0.809,3235.4,3234.6,1.77645074]
[1767682867418,3.89980979,3235.4,3234.6,1.77645074]
[1767682867628,5.71818417,3235.4,3234.6,1.77645074]
[1767682868212,1.83685013,3235.3,3234.5,0.001]
[1767682868427,1.81837438,3235.0,3234.5,0.001]
[1767682869337,0.57366599,3235.3,3234.5,1.77745074]
[1767682869500,0.59214174,3235.3,3234.5,1.77745074]
[1767682870308,5.50142752,3235.3,3234.5,1.77745074]
[1767682870503,0.63104275,3235.2,3234.5,1.77745074]
[1767682870843,0.01847575,3235.1,3234.5,0.001]
[1767682871130,1.81837438,3235.0,3234.5,0.001]
[1767682871329,4.90958533,3235.0,3234.5,0.001]
[1767682871734,0.82747575,3234.9,3234.5,0.001]
[1767682871971,0.60417313,3234.8,3234.5,0.001]
[1767682872372,0.60417313,3234.8,3234.1,1.77645074]